Cogmind - Beta 10.2 @@@ ROGUE MODE // 2021.07.06 @ 18:23:31 Player: CreepyD Result: Destroyed by H-77 Assassin with Coil Gun Performance ------------- Evolutions (6) 3000 Regions Visited (11) 2200 Robots Destroyed (25) 125 Value Destroyed (982) 982 Prototype IDs (8) 160 Alien Tech Used (0) 0 Bonus (0) 0 TOTAL SCORE: 6467 Bonus ------- None Cogmind --------- Core Integrity 0/1150 Matter 90/300 Energy 100/100 System Corruption 6% Temperature Cool (0) Movement Core (50) Location -4/Factory Parts ------- > --- POWER (3) -------- (None) > --- PROPULSION (7) --- (None) > --- UTILITY (7) ------ Advanced Terrain Scan Processor > --- WEAPON (2) ------- (None) > --- INVENTORY (4) ---- Heavy Antimatter Reactor Improved Heavy Treads Peak State ------------ > --- POWER ------------ Micro Nuclear Core Neutrino Core Light Antimatter Reactor > --- PROPULSION ------- Medium Treads Improved Cesium-ion Thruster Nuclear Pulse Array Nuclear Pulse Array > --- UTILITY ---------- Long-range Sensor Array Improved Signal Interpreter Matter Filter Improved Weapon Cycler Advanced Transmission Jammer Reaction Control System System Shield > --- WEAPON ----------- Magnetic Acceleration Cannon Enhanced Gauss Cannon > --- INVENTORY -------- Heavy Antimatter Reactor Magnetic Acceleration Cannon Hardcell Cannon [Rating: 96] Favorites ----------- Power Ion Engine Engine Ion Engine Power Core Neutrino Core Reactor Heavy Antimatter Reactor Propulsion Xenon Bombardment Thruster Treads Medium Treads Leg Flexi-carbon Leg Wheel Wheel Flight Unit Xenon Bombardment Thruster Utility System Shield Device Long-range Sensor Array Storage Small Storage Unit Processor Transport Network Coupler Hackware System Shield Protection Improved Propulsion Shielding Weapon Magnetic Acceleration Cannon Energy Gun Arc Projector Energy Cannon Beam Cannon Ballistic Gun Shotgun Ballistic Cannon Magnetic Acceleration Cannon Launcher Micro-nuke Launcher Build | -11 -10 -9 -8 -7 -7 -7 -6 -5 -5 -5 -4 ------- Run | Scr Mat Mat Mat Fac Low Low Fac Fac Upp Upp Fac Slots Evolved 12 | . . 2 2 2 . . 2 2 . . 2 Power 2 | . . . 1 . . . . 1 . . . Propulsion 5 | . . 2 1 1 . . . 1 . . . Utility 5 | . . . . 1 . . 2 . . . 2 Weapon . | . . . . . . . . . . . . Parts Attached 78 | 6 7 2 1 8 2 . 13 13 3 . 23 Power 12 | 1 . . . . . . 4 3 . . 4 Engine 4 | 1 . . . . . . 1 2 . . . Core 5 | . . . . . . . 3 1 . . 1 Reactor 3 | . . . . . . . . . . . 3 Propulsion 20 | 2 2 2 . 3 1 . . 4 . . 6 Treads 1 | . . . . . . . . . . . 1 Leg 3 | . . . . . . . . . . . 3 Wheel 3 | 2 . . . . . . . . . . 1 Hover . | . . . . . . . . . . . . Flight 13 | . 2 2 . 3 1 . . 4 . . 1 Utility 26 | 1 . . 1 4 1 . 4 4 3 . 8 Device 18 | . . . . 2 1 . 4 3 2 . 6 Storage 1 | 1 . . . . . . . . . . . Processor 4 | . . . . 1 . . . . 1 . 2 Hackware 2 | . . . 1 . . . . 1 . . . Protection 1 | . . . . 1 . . . . . . . Artifact . | . . . . . . . . . . . . Weapon 20 | 2 5 . . 1 . . 5 2 . . 5 Energy Gun 4 | 1 . . . 1 . . 1 . . . 1 Energy Cannon 7 | . 4 . . . . . 3 . . . . Ballistic Gun 2 | 1 1 . . . . . . . . . . Ballistic Cannon 6 | . . . . . . . 1 2 . . 3 Launcher 1 | . . . . . . . . . . . 1 Special Weapon . | . . . . . . . . . . . . Impact Weapon . | . . . . . . . . . . . . Slashing Weapon . | . . . . . . . . . . . . Piercing Weapon . | . . . . . . . . . . . . Special Melee Weapon . | . . . . . . . . . . . . Unidentified Prototypes 6 | . . . . 1 . . 2 . . . 3 Parts Lost 36 | . . . . . 1 2 . 7 . . 26 Power 5 | . . . . . . . . 2 . . 3 Propulsion 13 | . . . . . . . . 4 . . 9 Utility 11 | . . . . . 1 . . 1 . . 9 Weapon 7 | . . . . . . 2 . . . . 5 Highest Loss Streak 10 | . . . . . 1 2 . 6 . . 10 Average Slot Usage (%) 69 | . 70 77 63 77 84 83 80 69 70 70 53 Engine 4 | . 14 11 9 7 7 7 7 1 . . . Core 3 | . . . . . . . 3 8 11 11 4 Reactor 1 | . . . . . . . . . . . 3 Leg 1 | . . . . . . . . . . . 3 Flight 22 | . 24 44 36 34 38 38 33 25 17 17 4 Device 11 | . . . . . 4 7 19 16 16 17 13 Processor 6 | . . . . 5 7 7 6 5 5 5 8 Hackware 2 | . . . . 7 2 . . 3 5 5 4 Protection 2 | . . . . 5 7 7 6 1 . . . Energy Gun 2 | . 4 . . 5 7 7 1 . . . . Energy Cannon 3 | . 12 22 18 9 7 6 . . . . . Ballistic Cannon 3 | . . . . . . . . 4 11 11 8 Naked Turns . | . . . . . . . . . . . . Heaviest Build 64 | 13 13 11 11 15 18 18 33 44 42 42 64 Greatest Support 68 | 20 20 20 15 27 19 19 34 68 48 48 60 Greatest Overweight (x) 5 | 1 4 . . . 1 1 1 . . . 5 Average Overweight (x) . | . . . . . . . . . . . . Largest Inventory Capacity 6 | 6 6 4 4 4 4 4 4 4 4 4 4 Average Capacity 4 | 5 4 4 4 4 4 4 4 4 4 4 4 Most Carried 4 | 4 4 3 4 4 4 3 4 4 4 4 4 Average Carried 3 | . 3 2 3 3 3 3 3 3 3 4 3 Final Capacity 6 | 6 4 4 4 4 4 4 4 4 4 4 4 Final Carried 4 | . 4 3 3 4 3 3 3 4 4 4 3 Class Distribution -------------------- 57% | Mutant 28% | Scout 7% | Sprinter 4% | Infiltrator-Mutant Dominant Class ---------------- Mutant | -10/Materials Mutant | -9/Materials Mutant | -8/Materials Mutant | -7/Factory Mutant | -7/Lower Caves Mutant | -7/Lower Caves Scout | -6/Factory Scout | -5/Factory Sprinter | -5/Upper Caves Sprinter | -5/Upper Caves Mutant | -4/Factory Resources | -11 -10 -9 -8 -7 -7 -7 -6 -5 -5 -5 -4 ----------- Run | Scr Mat Mat Mat Fac Low Low Fac Fac Upp Upp Fac Matter Collected 1168 | 249 105 . . . 148 . 81 . . . 585 Remotely . | . . . . . . . . . . . . Salvage Created 750 | 46 105 . . 41 . . 91 . . . 467 Parts 42 | 9 6 . . 4 . . 4 . . . 19 Haulers Intercepted 4 | . 2 . . 1 . . . . . . 1 Recyclers Shooed 2 | 1 1 . . . . . . . . . . Parts Field Recycled . | . . . . . . . . . . . . Retrieved Matter . | . . . . . . . . . . . . Parts Self-Destructed 1 | . . . . . 1 . . . . . . Prevented 1 | . . . . . 1 . . . . . . Kills | -11 -10 -9 -8 -7 -7 -7 -6 -5 -5 -5 -4 ------- Run | Scr Mat Mat Mat Fac Low Low Fac Fac Upp Upp Fac Combat Hostiles Destroyed 13 | . . . . . . . 1 . . . 12 Guns 1 | . . . . . . . . . . . 1 Cannons 9 | . . . . . . . 1 . . . 8 AOE 3 | . . . . . . . . . . . 3 Classes Destroyed 9 | 1 2 . . . . . 1 . . . 5 Worker 1 | . . . . . . . . . . . 1 Tunneler 3 | 3 . . . . . . . . . . . Hauler 4 | . 2 . . 1 . . . . . . 1 Operator 1 | . . . . . . . . . . . 1 Watcher 3 | . 1 . . . . . 2 . . . . Swarmer 3 | . . . . . . . . . . . 3 Grunt 6 | . . . . . . . . . . . 6 Sentry 1 | . . . . . . . . . . . 1 Programmer 3 | . . . . . . . 1 . . . 2 Best Kill Streak 3 | 3 3 . . 1 . . 1 . . . 3 Combat Bots Only 3 | . . . . . . . 1 . . . 3 Max Kills in Single Turn 2 | 1 1 . . 1 . . 1 . . . 2 Gunslinging . | . . . . . . . . . . . . Exploded 2 | . . . . . . . . . . . 2 Melee . | . . . . . . . . . . . . Uniques/NPCs Destroyed . | . . . . . . . . . . . . Combat | -11 -10 -9 -8 -7 -7 -7 -6 -5 -5 -5 -4 -------- Run | Scr Mat Mat Mat Fac Low Low Fac Fac Upp Upp Fac Damage Taken 5024 | . 2 29 . 139 98 69 14 954 . 30 3689 Core 1370 | . 2 . . 32 23 9 14 138 . . 1152 Absorbed by Shields 69 | . . . . . 27 25 . 17 . . . Core Remaining (%) 96 | 100 99 100 100 . . 90 98 . . 86 . Volleys Fired 107 | 9 10 3 2 7 5 1 15 2 . . 53 Largest 2 | 2 2 2 2 2 2 1 1 1 . . 2 Hottest 130 | 70 120 120 120 120 115 55 90 40 . . 130 Shots Fired 183 | 18 20 6 4 14 10 1 15 2 . . 93 Gun 57 | 18 8 . . 5 5 1 13 . . . 7 Cannon 124 | . 12 6 4 9 5 . 2 2 . . 84 Launcher 2 | . . . . . . . . . . . 2 Special . | . . . . . . . . . . . . Kinetic 101 | 9 6 . . . . . . 2 . . 84 Thermal 62 | 9 14 6 4 9 5 . 15 . . . . Explosive 2 | . . . . . . . . . . . 2 Electromagnetic 18 | . . . . 5 5 1 . . . . 7 Robot Hit Streak 10 | 6 6 1 1 2 4 5 8 . . . 10 Robot Miss Streak 3 | 2 3 3 3 3 2 . 3 2 . . 2 Penetration Max . | . . . . . . . . . . . . Secondary Targets . | . . . . . . . . . . . . Shots Hit Robots 100 | 11 14 1 1 3 6 1 6 . . . 57 Core Hits 49 | 4 4 . . 1 . 1 6 . . . 33 Critical Hits 4 | . 1 . . . . . . . . . 3 Critical Kills 1 | . . . . . . . . . . . 1 Critical Parts Destroyed 3 | . 1 . . . . . . . . . 2 Melee Attacks . | . . . . . . . . . . . . Impact . | . . . . . . . . . . . . Slashing . | . . . . . . . . . . . . Piercing . | . . . . . . . . . . . . Sneak Attacks . | . . . . . . . . . . . . Combat Hostiles . | . . . . . . . . . . . . Follow-up Attacks . | . . . . . . . . . . . . Damage Inflicted 3632 | 162 187 17 17 76 62 8 311 . . . 2792 Guns 618 | 162 75 . . 24 28 8 156 . . . 165 Cannons 2176 | . 107 17 17 52 34 . 40 . . . 1909 Explosions 776 | . . . . . . . 115 . . . 661 Melee . | . . . . . . . . . . . . Ramming 62 | . 5 . . . . . . . . . 57 Kinetic 2044 | 72 63 . . . . . . . . . 1909 Thermal 666 | 90 119 17 17 52 34 . 311 . . . 26 Explosive 635 | . . . . . . . . . . . 635 Electromagnetic 225 | . . . . 24 28 8 . . . . 165 Impact . | . . . . . . . . . . . . Slashing . | . . . . . . . . . . . . Piercing . | . . . . . . . . . . . . Highest Corruption 6 | . . . . . . . 1 . . . 6 Average Corruption 3 | . . . . . . . 1 . . . 4 Corruption Purged . | . . . . . . . . . . . . Effects 6 | . . . . . . . . . . . 6 Message Errors 3 | . . . . . . . . . . . 3 Matter Fused 2 | . . . . . . . . . . . 2 Weapon Failures 1 | . . . . . . . . . . . 1 Overload Shots . | . . . . . . . . . . . . Overflow Damage 248 | . . . . . . . 60 . . . 188 Projectiles 147 | . . . . . . . . . . . 147 Explosions 101 | . . . . . . . 60 . . . 41 Melee . | . . . . . . . . . . . . Knockbacks 17 | . . . . . . . . . . . 17 Impact . | . . . . . . . . . . . . Kinetic 16 | . . . . . . . . . . . 16 Secondary 1 | . . . . . . . . . . . 1 Self-Inflicted Damage 55 | . 2 . . . . . . . . . 53 Shots 1 | . . . . . . . . . . . 1 Rammed 8 | . 1 . . . . . . . . . 7 Targets Rammed 8 | . 1 . . . . . . . . . 7 Kicked . | . . . . . . . . . . . . Crushed . | . . . . . . . . . . . . Highest Temperature 429 | 72 132 180 102 90 109 6 62 58 . . 429 Average Temperature 69 | 33 46 97 51 35 56 4 15 28 . . 140 Received Heat Transfer 533 | . . 9 . 42 26 . . 9 . 9 438 Effects 5 | . . . . . . . . . . . 5 Shutdowns 1 | . . . . . . . . . . . 1 Energy Bleed 1 | . . . . . . . . . . . 1 Short Circuit 3 | . . . . . . . . . . . 3 Siege Activations . | . . . . . . . . . . . . Robots Corrupted . | . . . . . . . . . . . . Combat Hostiles . | . . . . . . . . . . . . Parts Fried . | . . . . . . . . . . . . Impact Corruptions . | . . . . . . . . . . . . Robots Melted . | . . . . . . . . . . . . Combat Hostiles . | . . . . . . . . . . . . Parts Melted . | . . . . . . . . . . . . Heat Transferred 1247 | 259 259 37 37 111 74 . 420 . . . 50 Parts Sabotaged . | . . . . . . . . . . . . Parts Stolen 1 | . . . . . 1 . . . . . . Parts Stripped . | . . . . . . . . . . . . Power Chain Reactions 1 | . . . . . . . . . . . 1 Missiles Intercepted . | . . . . . . . . . . . . Alert | -11 -10 -9 -8 -7 -7 -7 -6 -5 -5 -5 -4 ------- Run | Scr Mat Mat Mat Fac Low Low Fac Fac Upp Upp Fac Peak Influence 331 | 15 88 75 106 211 . . 185 331 . . 281 Initial 105 | . 9 37 31 47 . . . 54 . . 105 Average 98 | 4 48 58 65 77 . . 53 162 . . 139 Maximum Alert Level 1 | . . . . 1 . . . 1 . . 1 Low Security (%) 84 | 100 100 100 100 99 . . 100 66 . . 69 Level 1 15 | . . . . . . . . 33 . . 30 Level 2 . | . . . . . . . . . . . . Level 3 . | . . . . . . . . . . . . Level 4 . | . . . . . . . . . . . . Level 5 . | . . . . . . . . . . . . High Security . | . . . . . . . . . . . . Max Security . | . . . . . . . . . . . . Squads Dispatched 12 | . 1 . 1 1 . . 2 2 . . 5 Investigation 2 | . . . . . . . . 1 . . 1 Extermination 3 | . . . . . . . 1 . . . 2 Reinforcement 7 | . 1 . 1 1 . . 1 1 . . 2 Assault . | . . . . . . . . . . . . Garrison . | . . . . . . . . . . . . Intercept . | . . . . . . . . . . . . Construction Impeded . | . . . . . . . . . . . . Haulers Reinforced . | . . . . . . . . . . . . Stealth | -11 -10 -9 -8 -7 -7 -7 -6 -5 -5 -5 -4 --------- Run | Scr Mat Mat Mat Fac Low Low Fac Fac Upp Upp Fac Distress Signals 5 | . . . 1 1 . . 1 . . . 2 Communications Jammed 111 | . . . . . . . . . . . 111 Distress Signals 111 | . . . . . . . . . . . 111 Times Spotted 106 | . 6 2 4 10 5 3 10 20 . 3 43 Peak Tracking Total 11 | . 3 3 6 6 3 3 6 10 . 7 11 Tactical Retreats 17 | . . . . 3 1 . 3 5 . . 5 Traps | -11 -10 -9 -8 -7 -7 -7 -6 -5 -5 -5 -4 ------- Run | Scr Mat Mat Mat Fac Low Low Fac Fac Upp Upp Fac Traps Triggered 4 | . 1 . . . . . 1 . . . 2 Indirectly . | . . . . . . . . . . . . Trap Hack Attempts . | . . . . . . . . . . . . Triggered . | . . . . . . . . . . . . Disarmed . | . . . . . . . . . . . . Reprogrammed . | . . . . . . . . . . . . Reused . | . . . . . . . . . . . . Traps Extracted . | . . . . . . . . . . . . Installed . | . . . . . . . . . . . . Triggered . | . . . . . . . . . . . . Machines | -11 -10 -9 -8 -7 -7 -7 -6 -5 -5 -5 -4 ---------- Run | Scr Mat Mat Mat Fac Low Low Fac Fac Upp Upp Fac Machines Disabled 11 | . . . . . . . 2 . . . 9 Max in Single Turn 2 | . . . . . . . 2 . . . 2 Garrison Access 1 | . . . . . . . . . . . 1 Machines Sabotaged . | . . . . . . . . . . . . Garrisons Compromised . | . . . . . . . . . . . . Overloaded Fab Kills . | . . . . . . . . . . . . Fab Network Shutdowns . | . . . . . . . . . . . . Hacking | -11 -10 -9 -8 -7 -7 -7 -6 -5 -5 -5 -4 --------- Run | Scr Mat Mat Mat Fac Low Low Fac Fac Upp Upp Fac Machines Accessed 27 | . 3 1 . 4 . . 7 2 3 . 7 Terminals 13 | . 2 1 . 3 . . 3 . . . 4 Fabricators 4 | . . . . 1 . . 3 . . . . Repair Stations 1 | . . . . . . . . . . . 1 Recycling Units 3 | . 1 . . . . . 1 1 . . . Scanalyzers 1 | . . . . . . . . . . . 1 Garrison Access 2 | . . . . . . . . 1 . . 1 Total Hacks 67 | . 5 1 . 12 . . 12 4 8 . 25 Successful 34 | . 3 1 . 6 . . 4 1 8 . 11 Failed 33 | . 2 . . 6 . . 8 3 . . 14 Catastrophic 7 | . 1 . . 1 . . 3 . . . 2 Database Lockouts . | . . . . . . . . . . . . Manual 9 | . 3 1 . . . . 1 . . . 4 Terminals 38 | . 4 1 . 11 . . 6 . . . 16 Fabricators 6 | . . . . 1 . . 5 . . . . Repair Stations 3 | . . . . . . . . . . . 3 Recycling Units 3 | . 1 . . . . . 1 1 . . . Scanalyzers 4 | . . . . . . . . . . . 4 Garrison Access 5 | . . . . . . . . 3 . . 2 Terminal Hacks 27 | . 2 1 . 6 . . 2 . 8 . 8 Record 7 | . . . . . . . . . 6 . 1 Part Schematic 7 | . . . . 4 . . 1 . . . 2 Prototype ID Bank 1 | . . . . . . . . . . . 1 Open Door 2 | . . . . . . . . . 2 . . Branch Access Points 2 | . 1 1 . . . . . . . . . Unreport Threat 3 | . . . . 2 . . . . . . 1 Locate Traps 1 | . . . . . . . . . . . 1 Security Status 1 | . . . . . . . . . . . 1 Recall Investigation 1 | . . . . . . . . . . . 1 Zone Layout 2 | . 1 . . . . . 1 . . . . Fabricator Hacks 2 | . . . . . . . 2 . . . . Build 2 | . . . . . . . 2 . . . . Repair Station Hacks 1 | . . . . . . . . . . . 1 Scan Component 1 | . . . . . . . . . . . 1 Recycling Unit Hacks 2 | . 1 . . . . . . 1 . . . Retrieve Components 2 | . 1 . . . . . . 1 . . . Scanalyzer 1 | . . . . . . . . . . . 1 Insert Component 1 | . . . . . . . . . . . 1 Garrison Access Hacks 1 | . . . . . . . . . . . 1 Seal Access 1 | . . . . . . . . . . . 1 Unauthorized Hacks . | . . . . . . . . . . . . Terminals . | . . . . . . . . . . . . Fabricators . | . . . . . . . . . . . . Repair Stations . | . . . . . . . . . . . . Recycling Units . | . . . . . . . . . . . . Scanalyzers . | . . . . . . . . . . . . Garrison Access . | . . . . . . . . . . . . Data Cores Recovered 1 | . . . . . . . . . . . 1 Used . | . . . . . . . . . . . . Hacking Detections 21 | . 3 1 . 4 . . 5 1 . . 7 Full Trace Events 2 | . . . . . . . . 1 . . 1 Feedback Events . | . . . . . . . . . . . . Feedback Blocked . | . . . . . . . . . . . . Robot Schematics Acquired . | . . . . . . . . . . . . Robots Built 2 | . . . . . . . 2 . . . . Matter 285 | . . . . . . . 285 . . . . Time 76 | . . . . . . . 76 . . . . Total Robot Build Rating 10 | . . . . . . . 10 . . . . Part Schematics Acquired 7 | . . . . 4 . . 1 . . . 2 Parts Built 1 | . . . . . . . 1 . . . . Matter 190 | . . . . . . . 190 . . . . Time 95 | . . . . . . . 95 . . . . Total Part Build Rating 5 | . . . . . . . 5 . . . . Parts Repaired . | . . . . . . . . . . . . Time . | . . . . . . . . . . . . Parts Recycled . | . . . . . . . . . . . . Recycled Matter . | . . . . . . . . . . . . Retrieved Matter . | . . . . . . . . . . . . Retrieved Components 5 | . 3 . . . . . . 2 . . . Parts Scanalyzed 1 | . . . . . . . . . . . 1 Part Schematics Acquired . | . . . . . . . . . . . . Parts Damaged . | . . . . . . . . . . . . Bothacking | -11 -10 -9 -8 -7 -7 -7 -6 -5 -5 -5 -4 ------------ Run | Scr Mat Mat Mat Fac Low Low Fac Fac Upp Upp Fac Used RIF Installer . | . . . . . . . . . . . . Robots Hacked . | . . . . . . . . . . . . Non-combat . | . . . . . . . . . . . . Combat . | . . . . . . . . . . . . Robot Hacks Applied . | . . . . . . . . . . . . Relay Couplers Released 2 | . . . . . . . . . . . 2 Machine Destruction 2 | . . . . . . . . . . . 2 Robots Rewired . | . . . . . . . . . . . . Allies Hacked . | . . . . . . . . . . . . Hacks Repelled . | . . . . . . . . . . . . Allies | -11 -10 -9 -8 -7 -7 -7 -6 -5 -5 -5 -4 -------- Run | Scr Mat Mat Mat Fac Low Low Fac Fac Upp Upp Fac Total Allies 10 | . . . . . . . 5 . 2 . 3 Largest Group 3 | . . . . . . . 3 . 2 . 3 Highest-Rated Group 138 | . . . . . . . 93 . 62 . 138 Highest-Rated Ally 46 | . . . . . . . 31 . 31 . 46 Total Orders . | . . . . . . . . . . . . Ally Attacks 35 | . . . . . . . 18 . . . 17 Total Damage 695 | . . . . . . . 275 . . . 420 Kills 1 | . . . . . . . 1 . . . . Allies Corrupted . | . . . . . . . . . . . . Allies Melted . | . . . . . . . . . . . . Intel | -11 -10 -9 -8 -7 -7 -7 -6 -5 -5 -5 -4 ------- Run | Scr Mat Mat Mat Fac Low Low Fac Fac Upp Upp Fac Robot Analysis Total . | . . . . . . . . . . . . Derelict Logs Recovered 4 | . . . . . 1 1 . . 2 . . Drone Launches . | . . . . . . . . . . . . Drone Recoveries . | . . . . . . . . . . . . Exploration | -11 -10 -9 -8 -7 -7 -7 -6 -5 -5 -5 -4 ------------- Run | Scr Mat Mat Mat Fac Low Low Fac Fac Upp Upp Fac Turns Passed 3466 | 82 265 45 45 294 406 79 669 250 221 25 1085 Spaces Moved 4444 | 45 296 85 101 583 496 85 819 543 509 79 803 Core 197 | 5 3 . . . . . . . . . 189 Treads 3 | . . . . . . . . . . . 3 Legs 345 | . . . . . . . . . . . 345 Wheels 90 | 40 25 . . . . . . . . . 25 Hover . | . . . . . . . . . . . . Flight 3809 | . 268 85 101 583 496 85 819 543 509 79 241 Fastest Speed 24 | 50 37 31 34 29 34 34 27 24 32 32 32 Average Speed 51 | 78 70 33 34 34 56 88 30 30 32 32 104 Slowest Speed 295 | 90 250 34 34 37 117 117 105 37 37 32 295 Overloaded Moves . | . . . . . . . . . . . . Propulsion Burnouts . | . . . . . . . . . . . . Robots Hopped 29 | . 3 . . 2 . 2 1 17 2 . 2 Cave-ins Triggered . | . . . . . . . . . . . . Exploration Rate (%) 26 | 3 59 12 18 18 74 12 22 13 63 9 18 Regions Visited 11 Branch Regions 4 Pre-discovered Areas . | . . . . . . . . . . . . Known Exits Taken 2 | . . . . . . . . . 1 1 . Unknown Exits Taken 9 | 1 1 1 1 1 1 1 1 1 . . . Scrap Searched 6 | . . . . . 4 . . . 2 . . Spaces Dug 3 | . . . . . . . . . . . 3 Terrain Destroyed 80 | . . . . . . . 15 1 . . 64 Melee . | . . . . . . . . . . . . Projectile 14 | . . . . . . . . 1 . . 13 AOE 66 | . . . . . . . 15 . . . 51 Terrain Rammed . | . . . . . . . . . . . . Walls Destroyed . | . . . . . . . . . . . . Machines Disabled . | . . . . . . . . . . . . Actions | -11 -10 -9 -8 -7 -7 -7 -6 -5 -5 -5 -4 --------- Run | Scr Mat Mat Mat Fac Low Low Fac Fac Upp Upp Fac Total 5397 | 73 333 94 106 661 610 84 1223 608 563 78 964 Wait 698 | 8 8 4 2 50 107 1 358 56 49 . 55 Move 4379 | 44 289 84 100 578 495 80 816 512 504 78 799 Hop 25 | . 3 . . 2 . 2 1 13 2 . 2 Pick Up 49 | 6 7 1 1 8 . . 8 4 1 . 13 Fast Attach 35 | . 3 . . 5 1 . 6 8 3 . 9 Attach 36 | 6 2 2 1 1 1 . 7 4 . . 12 Detach 8 | . . . . . . . 2 3 . . 3 Swap 7 | . 2 . . 2 . . . 1 . . 2 Drop 45 | . 8 . . 8 1 . 10 5 4 . 9 Fire 107 | 9 10 3 2 7 5 1 15 2 . . 53 Melee . | . . . . . . . . . . . . Ram 4 | . 1 . . . . . . . . . 3 Kick 4 | . . . . . . . . . . . 4 Crush . | . . . . . . . . . . . . Escape Stasis . | . . . . . . . . . . . . Rewire . | . . . . . . . . . . . . Trap . | . . . . . . . . . . . . Miscellaneous . | . . . . . . . . . . . . Route ------- -11/Scrapyard -10/Materials (discovered 2 exits: *Mat / *Min) -9/Materials (discovered 2 exits: [*Mat] / Min) -8/Materials -7/Factory (discovered 2 exits: *Fac / [*Low]) -7/Lower Caves -7/Lower Caves -6/Factory (discovered 3 exits: *Fac / *Low x2) -5/Factory -5/Upper Caves -5/Upper Caves -4/Factory (discovered 1 exit: Arm) History --------- Turn | Location | Event 22 | -11/Scrapyard | Discovered new exit (range 15) 83 | -11/Scrapyard | Entered Materials 135 | -10/Materials | Identified exit to Mines 316 | -10/Materials | Build established: Mutant 325 | -10/Materials | Discovered new exit (range 14) 348 | -10/Materials | Entered another Materials area 348 | -9/Materials | Evolved 2 slots: Propulsion x2 360 | -9/Materials | Identified exit to Mines 392 | -9/Materials | Discovered new exit (range 4) 393 | -9/Materials | Entered another Materials area 393 | -8/Materials | Evolved 2 slots: Power x1, Propulsion x1 432 | -8/Materials | Discovered new exit (range 16) 438 | -8/Materials | Entered Factory 438 | -7/Factory | Evolved 2 slots: Propulsion x1, Utility x1 714 | -7/Factory | Discovered new exit (range 11) 726 | -7/Factory | Discovered new exit (range 15) 732 | -7/Factory | Entered Lower Caves 764 | -7/Lower Caves | VTOL Module stolen by Master Thief 844 | -7/Lower Caves | Encountered a Warlord checkpoint 851 | -7/Lower Caves | Attracted the attention of an 0b10 checkpoint 1025 | -7/Lower Caves | Learned Factory non-interactive machine intel 1117 | -7/Lower Caves | Spotted B-75 Beast 1133 | -7/Lower Caves | Discovered new exit (range 11) 1138 | -7/Lower Caves | Entered another Lower Caves area 1211 | -7/Lower Caves | Discovered new exit (range 15) 1217 | -7/Lower Caves | Entered Factory 1217 | -6/Factory | Evolved 2 slots: Utility x2 1218 | -6/Factory | Identified exit to Lower Caves 1219 | -6/Factory | Loaded intel: 238 non-interactive machine locations 1307 | -6/Factory | Fabricated E-15 Imp? 1444 | -6/Factory | Allied Derelicts emerged from ambush trap array 1532 | -6/Factory | Build established: Scout 1706 | -6/Factory | Discovered exit to Lower Caves (range 13) 1863 | -6/Factory | Fabricated Gravmag Array? 1880 | -6/Factory | Discovered new exit (range 15) 1886 | -6/Factory | Entered another Factory area 1886 | -5/Factory | Evolved 2 slots: Power x1, Propulsion x1 2022 | -5/Factory | Lost 6 parts (2p3n1u) 2097 | -5/Factory | Discovered new exit (range 12) 2136 | -5/Factory | Entered Upper Caves 2144 | -5/Upper Caves | Identified exit to Upper Caves 2221 | -5/Upper Caves | A Commander dispatched an escort 2225 | -5/Upper Caves | Learned location of 1 exit from Research 2225 | -5/Upper Caves | Learned 8 Research zone layouts 2225 | -5/Upper Caves | Learned Armory trap positions 2225 | -5/Upper Caves | Learned Research emergency access door positions 2225 | -5/Upper Caves | Learned Factory terminal intel 2225 | -5/Upper Caves | Learned Research garrison access intel 2357 | -5/Upper Caves | Entered another Upper Caves area 2357 | -5/Upper Caves | Accompanied by 2 allies 2357 | -5/Upper Caves | Discovered new exit (range 13) 2358 | -5/Upper Caves | Commander's escort returned to base 2358 | -5/Upper Caves | Commander's escort returned to base 2358 | -5/Upper Caves | Encountered a Warlord checkpoint 2361 | -5/Upper Caves | Identified exit to Factory 2382 | -5/Upper Caves | Entered Factory 2382 | -4/Factory | Evolved 2 slots: Utility x2 2383 | -4/Factory | Identified exit to Armory 2384 | -4/Factory | Loaded intel: 21 terminal locations 2628 | -4/Factory | Lost 10 parts (2p4n3u1w) 2793 | -4/Factory | Build established: Mutant 2891 | -4/Factory | Found Prototype Processor 3196 | -4/Factory | Allied Derelicts emerged from ambush trap array 3196 | -4/Factory | Spotted B-86 Titan 3256 | -4/Factory | Identified Exp. Melee Analysis Suite 3261 | -4/Factory | Lost 3 parts (1p1n1w) 3384 | -4/Factory | Lost 8 parts (4n2u2w) 3403 | -4/Factory | Core integrity fell below 50% 3428 | -4/Factory | Core integrity fell below 20% 3459 | -4/Factory | Lost 5 parts (4u1w) 3467 | -4/Factory | Destroyed by H-77 Assassin with Coil Gun Last Messages --------------- 03424_ Slug penetrates Wall. 03425_ S-27 Virus destroyed. 03425_ Destroyed VTOL Module. 03426_ The unstable cave ceiling collapses. 03427_ System corrupted: Micro-nuke Launcher failed to launch. 03427_ Slug penetrates Wall. 03428_ Micro-nuke Launcher destroyed. 03428_ Penetrated by Slug. 03429_ Slug penetrates Wall. 03430_ The unstable cave ceiling collapses. 03432_ K-01 Serf cleans the Matter Pump. 03437_ Matter Pump disabled. 03457_ Manufacturing Mainframe disabled. 03462_ Slug penetrates Wall. 03462_ Penetrated by Slug. 03463_ System corrupted: Matter fused (-8). 03465_ Slug penetrates Wall. 03465_ Manufacturing Mainframe disabled. 03466_ Slammed into S-27 Virus. 03467_ Slug penetrates Wall. Map ----- +----------------------------------------------------+ | | | | | | | | | | | | | | | | | | | | | ?????????????????????????????????????????????????? | | ?????????????????????????????????????????????????? | | ??????????????????##############?????????????????? | | ??????????????????# #?????????????????? | | ??????????????????# """ " " #?????????????????? | | ??????????????????# "R" """" #?????????????????? | | ??????????????????# " " """" #?????????????????? | | ??????????????????# """" #?????????????????? | | ??????????????????# #?????????????????? | | ??????????????????# """" """" #?????????????????? | | ??????????????????# """" """" #?????????????????? | | ??????????????????# """" """" #?????????????????? | | ??????????????????# """ """" #?????????????????? | | #?????????????????# #?????????????????? | | #?????????????????# s = #?????????????????? | | #??????????????##########@######?????????????????? | | ??????????????# #????????????????????? | | #######????????# #????????????????????? | | /!= #????????# #????????????????????? | | !! ########## h +????????????????????? | | !! / !h #????????????????????? | | # #### #????????????????????? | | # %"" """" #??# ##???????????????????? | | # """ "F " [#??# ??????????????????? | | ####+## """ #??# ???????????# ?????? | | ???# #??# T ?????????# ?""" | | ???# #??# ??? ?????# """" | | ???# #########+#### ??? ???? # """" | | #### # # ??? ??? # """" | | # # "" "" ??? ??? # | | # # # "" "" "? "? # ! | | # + # """ """ """ "?" !# | | # # # """ """ """ """ # ! | | # ##+##+## + """ """ """ """ + " " ! | | # # ## # # "Y" ! | | / ## # "" "" "" "" # """ | | ### ]]|## # "" "" "" "" ######## | | ??# ]] ## ! [! # """ """ """ """ | | ??# ]] ## # """ """ """ """ | | ??#= ## # """ "" """ % | +----------------------------------------------------+ Best States ------------- Heat Dissipation 67 Coolant Potential 50 Energy Generation 49 Energy Capacity 605 Matter Stores 300 Matter Capacity 300 Sight Range 16 Robot Scan Range 20 Terrain Scan Range 20 Terrain Scan Density 210 Jamming Range 16 Power Amplification 30 Propulsion Shielding 66 Weapon Cycling 20 Evasion (%) 75 Melee Accuracy 12 Recoil Reduction 1 Matter Filtering 30 Defensive Hacking 10 Item Schematics ----------------- Greatsword | -7/Factory | Hacked Proton Cannon | -7/Factory | Hacked Hvy. Ion Cannon | -7/Factory | Hacked Hrd. Heavy Armor Plating | -7/Factory | Hacked Enh. Gauss Cannon | -6/Factory | Hacked Hvy. Gauss Cannon | -4/Factory | Hacked Adv. Armor Integrity Analyzer | -4/Factory | Hacked Robot Schematics ------------------ None Fabricated ------------ E-15 Imp | x2 | -6/Factory | Preloaded Gravmag Array | x1 | -6/Factory | Preloaded Alien Tech Used ----------------- None Achievements -------------- None Challenges ------------ None Game ------ Seed EtherialDirtyStorm Manual? 0 Play Time 01:30:33 Cumulative 83.7 hours Start 2021.07.01 @ 17:12:00 End 2021.07.06 @ 18:23:31 Sessions 5 Manual Loads 0 Difficulty Rogue Special Mode None Game No. 78 Rogue 77 Adventurer 1 Explorer 0 Win Type - Total 1 Types 1/0/0/0/0/0/0/0/0 Lore% 35 Gallery% 58 Achievement% 41 Wizard Run 0 Options --------- ASCII 0 Keyboard 0 Movement Numpad Keybinds 0 Fullscreen 2 Font 24/Smallcaps Map View 76x50 Tactical HUD 1 Map Filters NONE Filters NONE Steam 1 RUN: 6c16123d-c40d-41bb-9a08-85398ded23d2